Cogmind - Beta 10.2 @@@ ROGUE MODE // 2021.09.05 @ 13:34:38 Player: Sparker Result: Destroyed by B-75 Beast with Magnetic Acceleration Cannon Performance ------------- Evolutions (3) 1500 Regions Visited (5) 1000 Robots Destroyed (33) 165 Value Destroyed (876) 876 Prototype IDs (0) 0 Alien Tech Used (0) 0 Bonus (0) 0 TOTAL SCORE: 3541 Bonus ------- None Cogmind --------- Core Integrity 0/700 Matter 179/300 Energy 100/100 System Corruption 0% Temperature Cool (12) Movement Core (200) Ox3 Location -7/Lower Caves Parts ------- > --- POWER (1) -------- (None) > --- PROPULSION (3) --- (None) > --- UTILITY (7) ------ Medium Storage Unit Signal Interpreter Terrain Scan Processor Advanced Terrain Scan Processor Transport Network Coupler Improved Melee Analysis Suite System Shield > --- WEAPON (2) ------- Spear > --- INVENTORY (8) ---- Improved Deuterium Engine Titanium Leg Improved Carbon-fiber Leg Improved Carbon-fiber Leg Cesium-ion Thruster Great Axe Peak State ------------ > --- POWER ------------ Light Nuclear Core > --- PROPULSION ------- Armored Huge Wheel Cesium-ion Thruster > --- UTILITY ---------- Medium Storage Unit Signal Interpreter Terrain Scan Processor Advanced Terrain Scan Processor Transport Network Coupler Improved Melee Analysis Suite System Shield > --- WEAPON ----------- Missile Launcher Spear > --- INVENTORY -------- Improved Deuterium Engine Titanium Leg Improved Carbon-fiber Leg Improved Carbon-fiber Leg Cesium-ion Thruster Great Axe [Rating: 39] Favorites ----------- Power Light Nuclear Core Engine Light Ion Engine Power Core Light Nuclear Core Propulsion Cesium-ion Thruster Treads Light Treads Leg Aluminum Leg Wheel Wheel Flight Unit Cesium-ion Thruster Utility Medium Storage Unit Device Improved Heat Sink Storage Medium Storage Unit Processor Signal Interpreter Hackware System Shield Protection Light Armor Plating Weapon Hammer Energy Gun Particle Gun Ballistic Gun Assault Rifle Launcher Missile Launcher Impact Weapon Hammer Piercing Weapon Spear Build | -11 -10 -9 -8 -7 -7 ------- Run | Scr Mat Mat Mat Fac Low Slots Evolved 6 | . . 2 2 2 . Power . | . . . . . . Propulsion 1 | . . 1 . . . Utility 5 | . . 1 2 2 . Weapon . | . . . . . . Parts Attached 43 | 6 5 3 13 15 1 Power 7 | 1 1 1 2 1 1 Engine 5 | 1 1 1 1 1 . Core 2 | . . . 1 . 1 Reactor . | . . . . . . Propulsion 10 | 2 1 . 3 4 . Treads 1 | . . . 1 . . Leg 2 | . . . 2 . . Wheel 4 | 2 1 . . 1 . Hover . | . . . . . . Flight 3 | . . . . 3 . Utility 13 | 1 2 . 4 6 . Device 1 | . . . 1 . . Storage 3 | 1 1 . . 1 . Processor 7 | . 1 . 2 4 . Hackware 1 | . . . . 1 . Protection 1 | . . . 1 . . Artifact . | . . . . . . Weapon 13 | 2 1 2 4 4 . Energy Gun 3 | . . 1 2 . . Energy Cannon . | . . . . . . Ballistic Gun 6 | 2 . 1 1 2 . Ballistic Cannon . | . . . . . . Launcher 2 | . 1 . . 1 . Special Weapon . | . . . . . . Impact Weapon 1 | . . . 1 . . Slashing Weapon . | . . . . . . Piercing Weapon 1 | . . . . 1 . Special Melee Weapon . | . . . . . . Unidentified Prototypes . | . . . . . . Parts Lost 23 | . . 4 9 6 4 Power 6 | . . 1 2 2 1 Propulsion 5 | . . 1 1 1 2 Utility 4 | . . . 2 2 . Weapon 8 | . . 2 4 1 1 Highest Loss Streak 5 | . . 4 5 5 2 Average Slot Usage (%) 76 | . 96 62 60 82 80 Engine 3 | . 14 7 1 . . Core 3 | . . . 2 5 6 Treads 2 | . . . 5 1 . Leg 3 | . . . 7 3 . Wheel 6 | . 28 16 . 1 6 Flight 5 | . . . . 13 . Device 2 | . . . 5 3 . Storage 8 | . 14 11 9 7 7 Processor 20 | . 10 11 8 28 38 Hackware 2 | . . . . 3 7 Energy Gun 3 | . . 3 7 1 . Ballistic Gun 4 | . 21 8 2 . . Launcher 2 | . 6 6 . 1 5 Impact Weapon 3 | . . . 6 5 . Piercing Weapon 1 | . . . . 1 7 Naked Turns . | . . . . . . Heaviest Build 21 | 12 16 16 19 21 21 Greatest Support 28 | 26 26 26 27 28 28 Greatest Overweight (x) 4 | 1 . 1 4 3 3 Average Overweight (x) . | . . . . . . Largest Inventory Capacity 12 | 6 8 8 8 12 8 Average Capacity 7 | 5 6 8 8 8 8 Most Carried 8 | 6 7 7 8 8 6 Average Carried 5 | 2 6 7 4 6 6 Final Capacity 8 | 6 8 8 8 8 8 Final Carried 7 | 6 7 7 5 6 6 Class Distribution -------------------- 66% | Mutant 33% | Scavenger-Mutant Dominant Class ---------------- Mutant | -10/Materials Mutant | -9/Materials Scavenger-Mutant | -8/Materials Mutant | -7/Factory Mutant | -7/Lower Caves Resources | -11 -10 -9 -8 -7 -7 ----------- Run | Scr Mat Mat Mat Fac Low Matter Collected 661 | 227 143 . 150 86 55 Remotely . | . . . . . . Salvage Created 826 | . 164 12 464 143 43 Parts 51 | . 13 7 24 3 4 Haulers Intercepted 1 | . 1 . . . . Recyclers Shooed 1 | . . . . 1 . Parts Field Recycled . | . . . . . . Retrieved Matter . | . . . . . . Parts Self-Destructed 3 | . . . . . 3 Prevented . | . . . . . . Kills | -11 -10 -9 -8 -7 -7 ------- Run | Scr Mat Mat Mat Fac Low Combat Hostiles Destroyed 27 | . 8 4 10 3 2 Melee 4 | . . . 1 1 2 Guns 12 | . 3 1 8 . . AOE 10 | . 5 3 . 2 . Classes Destroyed 12 | . 4 . 3 3 2 Worker 1 | . . . . 1 . Builder 1 | . . . . 1 . Tunneler 2 | . . . 1 1 . Hauler 1 | . 1 . . . . Watcher 1 | . 1 . . . . Swarmer 12 | . 6 4 2 . . Grunt 9 | . 2 . 5 2 . Brawler 1 | . . . 1 . . Duelist 1 | . . . . 1 . Sentry 2 | . . . 2 . . Hunter 1 | . . . . . 1 Programmer 1 | . . . . . 1 Best Kill Streak 6 | . 6 3 5 4 1 Combat Bots Only 5 | . 5 3 5 3 1 Max Kills in Single Turn 3 | . 3 3 1 1 1 Gunslinging . | . . . . . . Exploded 3 | . 2 3 . 1 . Melee 1 | . . . 1 1 1 Uniques/NPCs Destroyed . | . . . . . . Combat | -11 -10 -9 -8 -7 -7 -------- Run | Scr Mat Mat Mat Fac Low Damage Taken 3557 | 2 228 347 1306 771 903 Core 1380 | 2 52 102 521 234 469 Absorbed by Shields 87 | . . . . 87 . Core Remaining (%) 64 | 99 78 74 5 . . Volleys Fired 74 | . 20 4 36 9 5 Largest 2 | . 2 2 2 1 1 Hottest 70 | . 50 50 70 36 36 Shots Fired 93 | . 30 6 43 9 5 Gun 79 | . 27 4 43 5 . Cannon . | . . . . . . Launcher 14 | . 3 2 . 4 5 Special . | . . . . . . Kinetic 41 | . 27 2 7 5 . Thermal 23 | . . . 23 . . Explosive 14 | . 3 2 . 4 5 Electromagnetic 15 | . . 2 13 . . Robot Hit Streak 19 | . 11 1 18 19 6 Robot Miss Streak 3 | . 2 3 2 3 1 Penetration Max . | . . . . . . Secondary Targets . | . . . . . . Shots Hit Robots 97 | . 19 2 50 16 10 Core Hits 55 | . 16 5 20 10 4 Critical Hits 2 | . . . 1 . 1 Critical Kills 2 | . . . 1 . 1 Critical Parts Destroyed . | . . . . . . Melee Attacks 59 | . . . 18 32 9 Impact 38 | . . . 18 20 . Slashing . | . . . . . . Piercing 21 | . . . . 12 9 Sneak Attacks 3 | . . . . 2 1 Combat Hostiles 1 | . . . . . 1 Follow-up Attacks . | . . . . . . Damage Inflicted 2579 | 5 497 176 692 750 459 Guns 848 | . 230 7 505 106 . Cannons . | . . . . . . Explosions 942 | . 267 169 . 360 146 Melee 784 | . . . 187 284 313 Ramming 5 | 5 . . . . . Kinetic 378 | . 230 . 42 106 . Thermal 368 | . . . 308 60 . Explosive 882 | . 267 169 . 300 146 Electromagnetic 162 | . . 7 155 . . Impact 239 | . . . 187 52 . Slashing . | . . . . . . Piercing 545 | . . . . 232 313 Highest Corruption 1 | . . 1 . . . Average Corruption 1 | . . 1 . . . Corruption Purged . | . . . . . . Overload Shots . | . . . . . . Overflow Damage 228 | . . 2 . 197 29 Projectiles . | . . . . . . Explosions 110 | . . 2 . 79 29 Melee 118 | . . . . 118 . Knockbacks . | . . . . . . Impact . | . . . . . . Kinetic . | . . . . . . Secondary . | . . . . . . Self-Inflicted Damage 220 | 2 53 39 . 115 11 Shots 7 | . 2 1 . 2 2 Rammed 1 | 1 . . . . . Targets Rammed 1 | 1 . . . . . Kicked . | . . . . . . Crushed . | . . . . . . Highest Temperature 53 | . 12 2 53 . . Average Temperature 20 | . 7 2 24 . . Received Heat Transfer 828 | . 30 27 450 159 162 Siege Activations . | . . . . . . Robots Corrupted 1 | . . . 1 . . Combat Hostiles 1 | . . . 1 . . Parts Fried 2 | . . . 1 1 . Impact Corruptions 2 | . . . 1 1 . Robots Melted . | . . . . . . Combat Hostiles . | . . . . . . Parts Melted 3 | . . . 3 . . Heat Transferred 790 | . . . 740 50 . Parts Sabotaged . | . . . . . . Parts Stolen . | . . . . . . Parts Stripped . | . . . . . . Power Chain Reactions . | . . . . . . Missiles Intercepted . | . . . . . . Alert | -11 -10 -9 -8 -7 -7 ------- Run | Scr Mat Mat Mat Fac Low Peak Influence 346 | . 273 210 346 230 . Initial 115 | . . 115 88 80 . Average 146 | . 130 158 202 117 . Maximum Alert Level 1 | . 1 1 1 1 . Low Security (%) 73 | 100 68 72 52 89 . Level 1 26 | . 31 27 47 10 . Level 2 . | . . . . . . Level 3 . | . . . . . . Level 4 . | . . . . . . Level 5 . | . . . . . . High Security . | . . . . . . Max Security . | . . . . . . Squads Dispatched 2 | . 2 . . . . Investigation 1 | . 1 . . . . Extermination . | . . . . . . Reinforcement 1 | . 1 . . . . Assault . | . . . . . . Garrison . | . . . . . . Intercept . | . . . . . . Construction Impeded . | . . . . . . Haulers Reinforced . | . . . . . . Stealth | -11 -10 -9 -8 -7 -7 --------- Run | Scr Mat Mat Mat Fac Low Distress Signals 1 | . . . 1 . . Communications Jammed . | . . . . . . Distress Signals . | . . . . . . Times Spotted 58 | . 14 7 20 14 3 Peak Tracking Total 10 | . 5 6 10 4 2 Tactical Retreats 8 | . 1 . 1 6 . Traps | -11 -10 -9 -8 -7 -7 ------- Run | Scr Mat Mat Mat Fac Low Traps Triggered 3 | . . 1 . 2 . Indirectly . | . . . . . . Trap Hack Attempts . | . . . . . . Triggered . | . . . . . . Disarmed . | . . . . . . Reprogrammed . | . . . . . . Reused . | . . . . . . Traps Extracted . | . . . . . . Installed . | . . . . . . Triggered 1 | . . . . . 1 Machines | -11 -10 -9 -8 -7 -7 ---------- Run | Scr Mat Mat Mat Fac Low Machines Disabled 3 | . 1 1 . 1 . Max in Single Turn 1 | . 1 1 . 1 . Machines Sabotaged . | . . . . . . Garrisons Compromised . | . . . . . . Overloaded Fab Kills . | . . . . . . Fab Network Shutdowns . | . . . . . . Hacking | -11 -10 -9 -8 -7 -7 --------- Run | Scr Mat Mat Mat Fac Low Machines Accessed 10 | . 3 . 2 5 . Terminals 7 | . 3 . 2 2 . Fabricators 1 | . . . . 1 . Repair Stations . | . . . . . . Recycling Units . | . . . . . . Scanalyzers 1 | . . . . 1 . Garrison Access 1 | . . . . 1 . Total Hacks 38 | . 9 . 9 20 . Successful 21 | . 6 . 4 11 . Failed 17 | . 3 . 5 9 . Catastrophic 3 | . 1 . . 2 . Database Lockouts . | . . . . . . Manual 25 | . 9 . 9 7 . Terminals 27 | . 9 . 9 9 . Fabricators 4 | . . . . 4 . Repair Stations . | . . . . . . Recycling Units . | . . . . . . Scanalyzers 4 | . . . . 4 . Garrison Access 3 | . . . . 3 . Terminal Hacks 2 | . 1 . . 1 . Record 1 | . 1 . . . . Alert Level 1 | . . . . 1 . Fabricator Hacks 2 | . . . . 2 . Load Schematic 1 | . . . . 1 . Build 1 | . . . . 1 . Repair Station Hacks . | . . . . . . Recycling Unit Hacks . | . . . . . . Scanalyzer 4 | . . . . 4 . Insert Component 2 | . . . . 2 . Analyze 2 | . . . . 2 . Garrison Access Hacks . | . . . . . . Unauthorized Hacks 13 | . 5 . 4 4 . Terminals 13 | . 5 . 4 4 . Track 6 | . 2 . 2 2 . Botnet 7 | . 3 . 2 2 . Fabricators . | . . . . . . Repair Stations . | . . . . . . Recycling Units . | . . . . . . Scanalyzers . | . . . . . . Garrison Access . | . . . . . . Data Cores Recovered . | . . . . . . Used . | . . . . . . Hacking Detections 9 | . 3 . 2 4 . Full Trace Events 1 | . 1 . . . . Feedback Events . | . . . . . . Feedback Blocked . | . . . . . . Robot Schematics Acquired . | . . . . . . Robots Built . | . . . . . . Matter . | . . . . . . Time . | . . . . . . Total Robot Build Rating . | . . . . . . Part Schematics Acquired 2 | . . . . 2 . Parts Built 1 | . . . . 1 . Matter 146 | . . . . 146 . Time 36 | . . . . 36 . Total Part Build Rating 3 | . . . . 3 . Parts Repaired . | . . . . . . Time . | . . . . . . Parts Recycled . | . . . . . . Recycled Matter . | . . . . . . Retrieved Matter . | . . . . . . Retrieved Components . | . . . . . . Parts Scanalyzed 2 | . . . . 2 . Part Schematics Acquired 2 | . . . . 2 . Parts Damaged . | . . . . . . Bothacking | -11 -10 -9 -8 -7 -7 ------------ Run | Scr Mat Mat Mat Fac Low Used RIF Installer . | . . . . . . Robots Hacked . | . . . . . . Non-combat . | . . . . . . Combat . | . . . . . . Robot Hacks Applied . | . . . . . . Relay Couplers Released . | . . . . . . Robots Rewired . | . . . . . . Allies Hacked . | . . . . . . Hacks Repelled . | . . . . . . Allies | -11 -10 -9 -8 -7 -7 -------- Run | Scr Mat Mat Mat Fac Low Total Allies . | . . . . . . Largest Group . | . . . . . . Highest-Rated Group . | . . . . . . Highest-Rated Ally . | . . . . . . Total Orders . | . . . . . . Ally Attacks . | . . . . . . Total Damage . | . . . . . . Kills . | . . . . . . Allies Corrupted . | . . . . . . Allies Melted . | . . . . . . Intel | -11 -10 -9 -8 -7 -7 ------- Run | Scr Mat Mat Mat Fac Low Robot Analysis Total . | . . . . . . Derelict Logs Recovered . | . . . . . . Drone Launches . | . . . . . . Drone Recoveries . | . . . . . . Exploration | -11 -10 -9 -8 -7 -7 ------------- Run | Scr Mat Mat Mat Fac Low Turns Passed 1728 | 51 231 109 489 613 235 Spaces Moved 1525 | 40 152 104 248 794 187 Core 29 | 2 . . 19 . 8 Treads 41 | . . . 41 . . Legs 262 | . . . 136 126 . Wheels 607 | 38 152 104 52 82 179 Hover . | . . . . . . Flight 586 | . . . . 586 . Fastest Speed 34 | 50 90 80 90 34 100 Average Speed 81 | 85 90 88 135 55 104 Slowest Speed 300 | 90 90 90 250 300 200 Overloaded Moves . | . . . . . . Propulsion Burnouts . | . . . . . . Robots Hopped . | . . . . . . Cave-ins Triggered . | . . . . . . Exploration Rate (%) 20 | 3 31 16 26 19 30 Regions Visited 5 Branch Regions 1 Pre-discovered Areas . | . . . . . . Known Exits Taken 2 | . . . 1 1 . Unknown Exits Taken 3 | 1 1 1 . . . Scrap Searched 1 | . . . . . 1 Spaces Dug 16 | . . . . 16 . Terrain Destroyed 131 | . 12 10 . 53 56 Melee 16 | . . . . 16 . Projectile . | . . . . . . AOE 115 | . 12 10 . 37 56 Terrain Rammed . | . . . . . . Walls Destroyed . | . . . . . . Machines Disabled . | . . . . . . Actions | -11 -10 -9 -8 -7 -7 --------- Run | Scr Mat Mat Mat Fac Low Total 1831 | 53 218 113 329 910 208 Wait 70 | 1 32 3 10 18 6 Move 1520 | 39 151 103 247 793 187 Hop . | . . . . . . Pick Up 23 | 6 4 . 4 9 . Fast Attach 28 | 6 2 3 8 8 1 Attach 11 | . . . 5 6 . Detach 5 | . . . . 5 . Swap 4 | . 3 . . 1 . Drop 16 | . 6 . 1 9 . Fire 74 | . 20 4 36 9 5 Melee 59 | . . . 18 32 9 Ram 1 | 1 . . . . . Kick . | . . . . . . Crush . | . . . . . . Escape Stasis 20 | . . . . 20 . Rewire . | . . . . . . Trap . | . . . . . . Miscellaneous . | . . . . . . Route ------- -11/Scrapyard -10/Materials -9/Materials -8/Materials -7/Factory -7/Lower Caves History --------- Turn | Location | Event 25 | -11/Scrapyard | Discovered new exit (range 16) 52 | -11/Scrapyard | Entered Materials 264 | -10/Materials | Discovered new exit (range 5) 283 | -10/Materials | Entered another Materials area 283 | -9/Materials | Evolved 2 slots: Propulsion x1, Utility x1 316 | -9/Materials | Build established: Mutant 378 | -9/Materials | Lost 4 parts (1p1n2w) 383 | -9/Materials | Discovered new exit (range 5) 392 | -9/Materials | Entered another Materials area 392 | -8/Materials | Evolved 2 slots: Utility x2 501 | -8/Materials | Lost 5 parts (1p1n1u2w) 526 | -8/Materials | Core integrity fell below 50% 553 | -8/Materials | Lost 3 parts (1p2w) 666 | -8/Materials | Core integrity fell below 20% 868 | -8/Materials | Build established: Scavenger-Mutant 868 | -8/Materials | Discovered new exit (range 11) 880 | -8/Materials | Identified exit to Factory 881 | -8/Materials | Entered Factory 881 | -7/Factory | Evolved 2 slots: Utility x2 1336 | -7/Factory | Fabricated Missile Launcher? 1444 | -7/Factory | Lost 5 parts (2p1n1u1w) 1460 | -7/Factory | Build established: Mutant 1477 | -7/Factory | Discovered new exit (range 4) 1493 | -7/Factory | Identified exit to Lower Caves 1494 | -7/Factory | Entered Lower Caves 1505 | -7/Lower Caves | Spotted B-75 Beast 1667 | -7/Lower Caves | Attracted the attention of an 0b10 checkpoint 1694 | -7/Lower Caves | Core integrity fell below 50% 1718 | -7/Lower Caves | Core integrity fell below 20% 1729 | -7/Lower Caves | Destroyed by B-75 Beast with Magnetic Acceleration Cannon Last Messages --------------- 01494_ Sneak attack on H-55 Commando. 01494_ H-55 Commando destroyed. 01498_ Acquired Lgt. Nuclear Core. 01499_ Carbon-fiber Leg fries itself beyond repair. 01499_ Acquired 43 matter. 01500_ Targeting Computer fries itself beyond repair. 01503_ Cesium-ion Thruster destroyed. 01508_ Assault Rifle fries itself beyond repair. 01521_ The unstable cave ceiling collapses. 01524_ Destroyed Shock Rifle. 01551_ P-60 Hacker suffers critical hit. 01551_ P-60 Hacker destroyed. 01608_ Searching scrap... 01608_ Found Core Analyzer. 01608_ Found 12 Matter. 01609_ Acquired 12 matter. 01666_ Missile Launcher destroyed. 01667_ Y-54 Guardian: "INTERCEPTING UNREGISTERED DERELICT." 01701_ Lgt. Nuclear Core destroyed. 01705_ Arm. Huge Wheel destroyed. Map ----- +----------------------------------------------------+ | ??????????????????????????????????????????# | | ?????????????????????????????????????????# ## | | ????????????????????????????????????????# #?# | | ????????????????????????????????????????# ??# | | ??????????????????????????????????????? ????# | | ???????????????????????????????????????##??????# | | ???????????????????????????????????????# # | | ??????????????????????????????????????# | | ??????????????????????????????????????# | | ??????????????????????????????????????# # | | ??????????????????????????????????????## #### ? | | ????????????????????????????? ????????# #### ? | | ????????????????????????????# #???????## # | | ??????????????????????##????# ##???????# | | ?????????????? ??????# ????# ##??????# ? | | ?????????????? ????## #??## #?????## ?? | | ????????????? ???# ### ??????# ?? | | ????????????? #### ???????# ?? | | ???????????? #????????# #?? | | ????????????? #????###### #?# | | ??????????????? #???## ### ### | | ???????????????? #??## ### ## | | ??????????????? #?## ??# | | ????????????????? ### #???## ### | | ??????????????????? ###"" #?? | | ????????????????????????#@ BB #?? | | ???????????????????????## BB #?? | | ??????????????????????## ;; ###### #? | | ??????????????????????# Y ;;;;; ##???? #? | | ??????????????????????## ### ;;##???? #? | | ???????????????????????## #"" ;###??# ##? | | ????????????????????????## """ ##?## #"# #?? | | ?????????????????????????# #??### ###?? | | ?????????????????????????# ##????###???? | | ?????????????????????????## ##???????????? | | ??????????????????????????## ;####????????????? | | ???????????????????????????## ##???????????????? | | ????????????????????????????##;##????????????????? | | ?????????????????????????????###?????????????????? | | ?????????????????????????????????????????????????? | | ?????????????????????????????????????????????????? | | ?????????????????????????????????????????????????? | | ?????????????????????????????????????????????????? | | ?????????????????????????????????????????????????? | | ?????????????????????????????????????????????????? | | ?????????????????????????????????????????????????? | | ?????????????????????????????????????????????????? | | ?????????????????????????????????????????????????? | | ?????????????????????????????????????????????????? | | ?????????????????????????????????????????????????? | +----------------------------------------------------+ Best States ------------- Heat Dissipation 48 Energy Generation 14 Energy Capacity 250 Matter Stores 300 Matter Capacity 300 Sight Range 16 Terrain Scan Density 285 Armor Coverage 150 Evasion (%) 63 Targeting Accuracy 8 Melee Accuracy 6 Recoil Reduction 1 Defensive Hacking 10 Item Schematics ----------------- Arm. Huge Wheel | -7/Factory | Scanalyzed Missile Launcher | -7/Factory | Scanalyzed Robot Schematics ------------------ None Fabricated ------------ Missile Launcher | x1 | -7/Factory Alien Tech Used ----------------- None Achievements -------------- None Challenges ------------ None Game ------ Seed ThrusterCombatAmplifier Manual? 0 Play Time 00:50:04 Cumulative 86.7 hours Start 2021.09.04 @ 13:30:47 End 2021.09.05 @ 13:34:38 Sessions 3 Manual Loads 0 Difficulty Rogue Special Mode None Game No. 66 Rogue 66 Adventurer 0 Explorer 0 Win Type - Total 0 Types 0/0/0/0/0/0/0/0/0 Lore% 34 Gallery% 42 Achievement% 30 Wizard Run 0 Options --------- ASCII 0 Keyboard 1 Movement Numpad Keybinds 0 Fullscreen 1 Font 18/SmallcapsGlow Map View 76x50 Tactical HUD 1 Map Filters NONE Filters NONE Steam 1 RUN: eab508d1-6a8b-46cc-97ec-75b92ba489cd